bitfinex-derivatives/quotes_SOLF0:USTF0_20250907
["timestamp","ask_amount","ask_price","bid_price","bid_amount"]
[1757265567545,5.46226945,202.92,202.76,122.4]
[1757265567746,7.64,202.91,202.8,3.06095736]
[1757265567942,16.16322681,202.91,202.8,3.06095736]
[1757265568142,16.16322681,202.91,202.79,7.54]
[1757265568341,7.64,202.88,202.79,7.54]
[1757265569247,7.64,202.88,202.82,3.06095736]
[1757265569438,5.46226945,202.91,202.83,7.54]
[1757265569439,7.64,202.91,202.83,7.54]
[1757265569634,7.64,202.91,202.83,10.60095736]
[1757265569840,7.64,202.91,202.83,11.9767]
[1757265570134,7.64,202.91,202.83,15.03765736]
[1757265571135,7.64,202.91,202.83,10.60095736]
[1757265571335,7.64,202.91,202.83,7.54]
[1757265571740,7.64,202.91,202.74,69.90605267]
[1757265571946,7.64,202.88,202.77,3.06095736]
[1757265572139,7.64,202.88,202.78,7.54]
[1757265572744,7.64,202.88,202.78,11.9778]
[1757265573147,7.64,202.88,202.79,3.06095736]
[1757265573342,7.64,202.88,202.79,7.49855736]
[1757265574047,7.64,202.88,202.79,3.06095736]
[1757265574250,7.64,202.88,202.8,7.54]
[1757265574650,7.64,202.88,202.81,3.06095736]
[1757265576248,7.64,202.88,202.82,4.437]
[1757265582150,7.64,202.88,202.8,4.4374]
[1757265582341,7.64,202.88,202.8,7.49835736]
[1757265583049,7.64,202.88,202.78,7.75]
[1757265583050,7.64,202.88,202.78,10.81095736]
[1757265583249,13.65226945,202.89,202.78,7.75]
[1757265583450,13.65226945,202.87,202.78,7.75]
[1757265585853,8.19,202.87,202.78,7.75]
[1757265586157,8.19,202.87,202.78,12.1878]
[1757265586751,8.19,202.87,202.78,7.75]
[1757265586955,13.65226945,202.87,202.78,7.75]
[1757265589156,13.65226945,202.87,202.78,12.1878]
[1757265590951,8.19,202.86,202.77,10.81095736]
[1757265591957,8.19,202.86,202.77,15.24895736]
[1757265593059,13.65226945,202.86,202.77,7.75]
[1757265595662,3.06095736,202.88,202.77,7.75]
[1757265595663,8.52322681,202.85,202.77,7.75]
[1757265595958,13.65226945,202.84,202.77,7.75]
[1757265596555,8.19,202.82,202.77,7.75]
[1757265596761,8.19,202.83,202.77,7.75]
[1757265597063,8.19,202.83,202.71,0.8583691]
[1757265597064,3.06095736,202.82,202.71,0.8583691]
[1757265597259,3.06095736,202.82,202.72,7.75]
[1757265597260,8.19,202.81,202.72,7.75]
[1757265598354,13.65226945,202.81,202.72,7.75]
[1757265598962,13.65226945,202.81,202.69,4.4398]
[1757265599160,13.65226945,202.81,202.59,8.8838]
[1757265599161,5.46226945,202.8,202.68,10.81095736]
[1757265599368,5.46226945,202.79,202.68,10.81095736]
[1757265599566,8.19,202.78,202.65,7.75]
[1757265599766,13.65226945,202.78,202.66,3.06095736]
[1757265600066,13.65226945,202.78,202.67,7.75]
[1757265600464,13.65226945,202.78,202.67,10.81095736]
[1757265600662,8.19,202.77,202.67,10.81095736]
[1757265600861,8.19,202.77,202.68,7.75]
[1757265601060,8.19,202.77,202.68,12.19]
[1757265601261,8.19,202.77,202.68,10.81095736]
[1757265601958,8.19,202.77,202.68,7.75]
[1757265602155,8.19,202.77,202.7,3.06095736]
[1757265602458,8.19,202.77,202.68,7.75]
[1757265606362,5.46226945,202.79,202.7,3.06095736]
[1757265606562,8.20300555,202.81,202.71,7.73]
[1757265606563,8.11,202.81,202.71,7.73]
[1757265607365,5.46226945,202.82,202.71,7.73]
[1757265607366,5.46226945,202.82,202.71,12.1693]
[1757265607662,8.11,202.81,202.71,12.1693]
[1757265607868,16.63322681,202.81,202.71,7.73]
[1757265608972,16.63322681,202.81,202.71,12.1693]
[1757265609169,5.46226945,202.83,202.73,7.73]
[1757265609364,13.57226945,202.84,202.73,7.73]
[1757265609770,8.11,202.84,202.76,7.73]
[1757265610365,3.06095736,202.86,202.79,7.73]
[1757265610366,5.46226945,202.86,202.79,7.73]
[1757265610666,8.11,202.87,202.81,3.06095736]
[1757265611067,8.11,202.87,202.79,7.73]
[1757265611565,8.11,202.87,202.79,12.1675]
[1757265612465,8.11,202.87,202.74,81.6078]
[1757265612466,5.46226945,202.85,202.75,7.73]
[1757265612666,5.46226945,202.85,202.78,1.96084737]
[1757265612667,1.96084737,202.85,202.78,1.96084737]
[1757265613167,5.46226945,202.85,202.78,1.96084737]
[1757265614470,5.46226945,202.85,202.8,1.96084737]
[1757265615367,13.57226945,202.85,202.8,9.69084737]
[1757265615769,13.57226945,202.84,202.8,7.73]
[1757265615968,8.11,202.84,202.8,7.73]
[1757265616870,5.46226945,202.85,202.82,7.73]
[1757265617074,13.57226945,202.85,202.81,1.96084737]
[1757265617372,8.11,202.84,202.81,1.96084737]
[1757265617773,13.57226945,202.85,202.81,9.69084737]
[1757265618371,5.46226945,202.85,202.81,7.73]
[1757265618572,5.46226945,202.85,202.65,14.81]
[1757265618573,5.46226945,202.83,202.73,7.73]
[1757265618768,8.11,202.83,202.79,9.69084737]
[1757265619476,8.11,202.83,202.8,7.73]
[1757265620476,5.46226945,202.84,202.8,7.73]
[1757265620669,5.46226945,202.84,202.81,9.69084737]
[1757265621171,8.11,202.83,202.74,7.73]
[1757265621373,5.46226945,202.82,202.76,1.96084737]
[1757265621566,8.11,202.8,202.76,7.73]
[1757265621770,8.11,202.79,202.75,1.96084737]
[1757265621972,8.11,202.79,202.75,7.73]
[1757265622474,5.46226945,202.8,202.74,1.96084737]
[1757265622475,7.42311682,202.8,202.74,1.96084737]
[1757265622673,8.11,202.78,202.72,1.96084737]
[1757265624273,8.11,202.78,202.71,7.73]
[1757265624570,5.46226945,202.79,202.73,1.96084737]
[1757265624772,13.57226945,202.78,202.72,1.96084737]
[1757265627972,13.57226945,202.78,202.64,102.0622]
[1757265627973,8.11,202.78,202.74,9.69084737]
[1757265630587,5.46226945,202.79,202.74,9.69084737]
[1757265630787,8.11,202.78,202.74,9.69084737]
[1757265632488,8.11,202.78,202.74,7.73]
[1757265632690,5.46226945,202.79,202.76,1.96084737]
[1757265632887,5.46226945,202.81,202.78,9.69084737]
[1757265633381,13.57226945,202.82,202.78,9.69084737]
[1757265634088,13.57226945,202.82,202.79,7.73]
[1757265634289,5.46226945,202.82,202.8,7.73]
[1757265634482,5.46226945,202.82,202.71,7.73]
[1757265634790,13.57226945,202.82,202.8,1.96084737]
[1757265635085,5.46226945,202.82,202.8,1.96084737]
[1757265635391,5.46226945,202.82,202.76,7.73]
[1757265635791,1.96084737,202.84,202.78,10.07084737]
[1757265635792,5.46226945,202.81,202.78,10.07084737]
[1757265635993,108.96,202.88,202.78,10.07084737]
[1757265635994,5.46226945,202.82,202.78,10.07084737]
[1757265636287,13.55226945,202.82,202.74,8.11]
[1757265636492,7.42311682,202.8,202.74,1.96084737]
[1757265636692,8.09,202.78,202.74,1.96084737]
[1757265636886,8.09,202.78,202.74,10.07084737]
[1757265637082,5.46226945,202.79,202.74,10.07084737]
[1757265637287,5.46226945,202.79,202.74,1.96084737]
[1757265637483,8.09,202.78,202.74,1.96084737]
[1757265637684,5.46226945,202.79,202.74,1.96084737]
[1757265637890,13.55226945,202.78,202.72,1.96084737]
[1757265638192,8.09,202.78,202.72,1.96084737]
[1757265638394,13.55226945,202.78,202.72,1.96084737]
[1757265638793,13.55226945,202.78,202.71,8.11]
[1757265639089,5.46226945,202.78,202.72,1.96084737]
[1757265639289,5.46226945,202.78,202.72,10.07084737]
[1757265639497,13.55226945,202.78,202.72,8.11]
[1757265639694,13.55226945,202.78,202.74,1.96084737]
[1757265640897,13.55226945,202.78,202.74,10.07084737]
[1757265642397,13.55226945,202.78,202.74,8.11]
[1757265642600,13.55226945,202.78,202.68,8.11]
[1757265642797,1.96084737,202.79,202.72,1.96084737]
[1757265642798,5.46226945,202.77,202.72,1.96084737]
[1757265642999,8.09,202.76,202.72,10.07084737]
[1757265643297,13.55226945,202.76,202.72,10.07084737]
[1757265643503,5.46226945,202.74,202.69,1.96084737]
[1757265643703,8.09,202.72,202.69,1.96084737]
[1757265643903,8.09,202.72,202.69,10.07084737]
[1757265645004,5.46226945,202.74,202.69,10.07084737]
[1757265645302,5.46226945,202.74,202.65,8.11]
[1757265645500,13.55226945,202.74,202.7,1.96084737]
[1757265645904,13.55226945,202.74,202.68,8.11]
[1757265646103,13.55226945,202.74,202.7,1.96084737]
[1757265646506,13.55226945,202.74,202.68,8.11]
[1757265646806,13.55226945,202.74,202.7,1.96084737]
[1757265648102,8.09,202.73,202.7,1.96084737]
[1757265649110,8.09,202.73,202.7,8.11]
[1757265649403,8.09,202.73,202.7,10.07084737]
[1757265649906,5.46226945,202.74,202.7,8.11]
[1757265650304,13.55226945,202.74,202.7,8.11]
[1757265650711,8.09,202.73,202.7,8.11]
[1757265650909,5.46226945,202.74,202.69,1.96084737]
[1757265651210,8.09,202.73,202.69,1.96084737]
[1757265651406,5.46226945,202.74,202.64,0.85857028]
[1757265651603,5.46226945,202.69,202.61,69.0922]
[1757265651804,5.46226945,202.72,202.68,10.07084737]
[1757265652104,5.46226945,202.71,202.66,1.96084737]
[1757265652299,5.46226945,202.71,202.66,10.07084737]
[1757265652300,8.09,202.71,202.66,10.07084737]
[1757265652504,8.09,202.71,202.66,8.11]
[1757265652705,5.46226945,202.69,202.62,8.11]
[1757265652905,13.55226945,202.68,202.62,10.07084737]
[1757265653198,13.55226945,202.68,202.52,69.1207]
[1757265653199,8.09,202.68,202.6,1.96084737]
[1757265653407,10.05084737,202.68,202.6,1.96084737]
[1757265655209,8.09,202.68,202.59,4.4419]
[1757265655605,8.09,202.68,202.61,1.96084737]
[1757265656811,8.09,202.68,202.59,4.4419]
[1757265657110,8.09,202.68,202.61,1.96084737]
[1757265660413,8.09,202.68,202.6,8.11]
[1757265660707,8.09,202.68,202.64,1.96084737]
[1757265660909,13.55226945,202.75,202.67,8.11]
[1757265661208,10.05084737,202.75,202.67,8.11]
[1757265661408,10.05084737,202.75,202.67,10.07084737]
[1757265661809,1.96084737,202.71,202.64,1.96084737]
[1757265662008,8.09,202.7,202.64,1.96084737]
[1757265662403,1.96084737,202.69,202.63,1.96084737]
[1757265662708,5.46226945,202.71,202.63,1.96084737]
[1757265663011,1.96084737,202.69,202.63,1.96084737]
[1757265664813,8.09,202.68,202.61,8.11]
[1757265665005,1.96084737,202.67,202.56,4.4426]
[1757265665205,7.84,202.66,202.57,7.86]
[1757265665511,7.84,202.66,202.6,1.96084737]
[1757265666212,7.84,202.66,202.59,7.86]
[1757265666414,7.84,202.67,202.61,1.96084737]
[1757265666713,7.84,202.67,202.59,7.86]
[1757265666913,7.84,202.67,202.61,1.96084737]
[1757265668204,7.84,202.67,202.63,7.86]
[1757265668406,13.30226945,202.71,202.67,7.86]
[1757265668715,7.84,202.71,202.67,7.86]
[1757265668912,7.84,202.71,202.58,7.86]
[1757265669213,7.84,202.71,202.62,7.86]
[1757265669509,7.84,202.71,202.67,7.86]
[1757265669708,7.84,202.71,202.68,1.96084737]
[1757265670511,1.96084737,202.73,202.66,1.96084737]
[1757265670714,7.84,202.72,202.66,1.96084737]
[1757265672317,7.84,202.72,202.67,1.96084737]
[1757265672519,7.84,202.73,202.67,1.96084737]
[1757265672710,1.96084737,202.72,202.61,4.4415]
[1757265672916,7.84,202.69,202.61,1.96084737]
[1757265673117,7.84,202.69,202.65,1.96084737]
[1757265673310,5.46226945,202.72,202.67,9.82084737]
[1757265673511,7.84,202.72,202.69,1.96084737]
[1757265673716,7.84,202.72,202.69,9.82084737]
[1757265674312,7.84,202.72,202.6,3.067707]
[1757265674518,7.84,202.74,202.67,7.86]
[1757265675415,7.84,202.74,202.55,401.69175775]
[1757265675416,7.84,202.72,202.63,7.86]
[1757265675619,7.84,202.72,202.62,3.067707]
[1757265675620,5.46226945,202.71,202.6,7.86]
[1757265675919,7.84,202.68,202.6,7.86]
[1757265680419,7.84,202.68,202.58,12.3021]
[1757265680618,7.84,202.68,202.58,15.369807]
[1757265681223,7.84,202.68,202.58,7.509807]
[1757265681423,7.84,202.68,202.59,7.86]
[1757265682220,13.30226945,202.66,202.53,3.067707]
[1757265682419,13.30226945,202.66,202.54,7.86]
[1757265682722,5.46226945,202.66,202.54,10.927707]
[1757265682923,7.84,202.65,202.54,10.927707]
[1757265683118,5.46226945,202.66,202.54,7.86]
[1757265683324,16.36997645,202.65,202.54,7.86]
[1757265684622,13.30226945,202.65,202.54,7.86]
[1757265684823,13.30226945,202.65,202.54,12.303]
[1757265685023,7.84,202.64,202.54,12.303]
[1757265685228,7.84,202.64,202.55,7.86]
[1757265685624,7.84,202.64,202.55,10.927707]
[1757265686219,7.84,202.64,202.55,7.86]
[1757265688831,7.84,202.64,202.55,12.3028]
[1757265689023,7.84,202.64,202.56,7.86]
[1757265689824,7.84,202.64,202.58,7.86]
[1757265695926,7.84,202.64,202.52,7.52]
[1757265696129,13.30226945,202.64,202.55,7.52]
[1757265700731,13.30226945,202.64,202.57,7.52]
[1757265703033,13.30226945,202.64,202.53,7.511007]
[1757265703234,13.30226945,202.64,202.54,7.52]
[1757265703830,13.30226945,202.64,202.55,7.52]
[1757265705437,13.30226945,202.64,202.55,11.9628]
[1757265707432,13.30226945,202.64,202.55,7.52]
[1757265707639,13.30226945,202.64,202.56,4.4426]
[1757265709035,13.30226945,202.64,202.57,10.587707]
[1757265709341,7.84,202.64,202.57,10.587707]
[1757265709735,7.84,202.64,202.57,7.52]
[1757265710839,7.84,202.64,202.58,4.4421]
[1757265711940,16.36997645,202.64,202.54,3.067707]
[1757265712542,13.27226945,202.62,202.51,7.52]
[1757265712741,7.81,202.6,202.51,7.52]
[1757265714948,13.27226945,202.6,202.49,10.587707]
[1757265715145,13.27226945,202.6,202.46,0.85942902]
[1757265715146,7.81,202.59,202.46,0.85942902]
[1757265715344,5.46226945,202.53,202.47,7.52]
[1757265715550,13.27226945,202.54,202.47,7.52]
[1757265716250,5.46226945,202.53,202.47,7.52]
[1757265716445,3.067707,202.53,202.47,7.52]
[1757265717551,49.14300555,202.57,202.4,7.52]
[1757265717552,3.067707,202.48,202.4,7.52]
[1757265717751,7.81,202.47,202.4,7.52]
[1757265718151,7.81,202.47,202.4,11.9662]
[1757265718549,7.81,202.47,202.4,7.52]
[1757265720751,7.81,202.5,202.4,7.52]
[1757265720956,10.877707,202.5,202.43,11.9655]
[1757265721354,7.81,202.5,202.43,11.9655]
[1757265721557,3.067707,202.52,202.43,7.52]
[1757265722447,7.81,202.53,202.43,11.9655]
[1757265722648,10.877707,202.53,202.43,7.52]
[1757265725059,10.877707,202.53,202.43,11.9654]
[1757265725756,10.877707,202.53,202.44,4.4452]
[1757265725957,7.81,202.53,202.45,7.55]
[1757265727962,7.81,202.53,202.47,4.4445]
[1757265730751,7.81,202.53,202.47,11.9945]
[1757265730955,7.81,202.53,202.47,7.55]
[1757265732455,7.41,202.56,202.47,7.55]
[1757265733061,7.41,202.56,202.47,11.9945]
[1757265733262,7.41,202.56,202.43,76.92]
[1757265733263,3.067707,202.55,202.4,78.02]
[1757265733462,7.41,202.54,202.45,7.55]
[1757265735858,7.41,202.48,202.36,11.47761384]
[1757265736165,7.41,202.48,202.37,7.55]
[1757265736362,1.96882643,202.47,202.4,9.51882643]
[1757265737157,7.41,202.48,202.42,1.96882643]
[1757265737364,8.20300555,202.56,202.43,7.55]
[1757265737365,1.96882643,202.5,202.43,7.55]
[1757265737857,9.37882643,202.52,202.44,1.96882643]
[1757265738365,1.96882643,202.48,202.42,1.96882643]
[1757265738562,1.96882643,202.48,202.4,9.51882643]
[1757265739159,7.41,202.49,202.4,9.51882643]
[1757265739360,1.96882643,202.48,202.4,9.51882643]
[1757265739760,1.96882643,202.46,202.36,0.85990684]
[1757265739965,7.41,202.45,202.38,9.51882643]
[1757265740168,1.96882643,202.46,202.39,7.55]
[1757265740472,9.37882643,202.46,202.39,9.51882643]
[1757265740863,9.37882643,202.46,202.38,1.96882643]
[1757265741165,9.37882643,202.46,202.37,7.55]
[1757265741366,9.37882643,202.46,202.38,1.96882643]
[1757265741966,9.37882643,202.46,202.39,1.96882643]
[1757265742166,7.41,202.47,202.33,8.41000247]
[1757265742366,9.37882643,202.42,202.35,1.96882643]
[1757265742763,9.37882643,202.42,202.32,1.96882643]
[1757265742764,1.96882643,202.4,202.32,1.96882643]
[1757265743163,1.96882643,202.4,202.3,7.55]
[1757265743468,1.96882643,202.4,202.33,1.96882643]
[1757265744064,1.96882643,202.4,202.34,1.96882643]
[1757265744469,7.41,202.42,202.29,0.86017253]
[1757265744470,7.41,202.42,202.36,1.96882643]
[1757265745170,7.41,202.42,202.35,7.55]
[1757265745371,7.41,202.42,202.35,9.51882643]
[1757265745567,7.41,202.42,202.35,7.55]
[1757265745765,7.41,202.42,202.35,13.96602643]
[1757265746063,1.96882643,202.41,202.35,13.96602643]
[1757265746461,7.41,202.36,202.29,0.86017253]
[1757265746667,7.41,202.36,202.27,7.55]
[1757265746961,1.96882643,202.32,202.27,7.55]
[1757265747166,7.41,202.36,202.27,7.55]
[1757265747361,1.96882643,202.28,202.26,0.8603852]
[1757265747570,7.41,202.27,202.15,13.97052643]
[1757265747768,1.96882643,202.24,202.16,7.55]
[1757265748367,1.96882643,202.24,202.1,69.264]
[1757265748368,7.41,202.16,201.91,7.55]
[1757265748568,7.41,202.16,201.98,7.55]
[1757265748870,1.96882643,202.0,201.87,7.55]
[1757265749064,7.41,202.06,201.89,7.55]
[1757265749268,7.41,202.19,201.87,64.64]
[1757265749469,1.96882643,201.99,201.9,1.96882643]
[1757265749663,1.96882643,201.99,201.91,7.55]
[1757265750171,7.41,202.03,201.91,7.55]
[1757265750370,4.94234187,202.12,201.94,7.55]
[1757265750569,7.41,202.12,201.97,7.55]
[1757265750771,7.41,202.17,202.01,7.55]
[1757265750968,7.41,202.17,202.04,76.8375]
[1757265751168,10.98,202.28,202.05,7.55]
[1757265751169,7.41,202.22,202.05,7.55]
[1757265751369,4.94234187,202.2,202.07,7.55]
[1757265751766,7.41,202.22,202.1,7.55]
[1757265751967,7.41,202.22,202.12,7.55]
[1757265752269,7.41,202.29,202.13,144.20234187]
[1757265752473,7.41,202.29,202.18,7.55]
[1757265752877,7.41,202.35,202.18,7.55]
[1757265753068,7.41,202.35,202.19,144.22234187]
[1757265753271,7.41,202.35,202.2,7.55]
[1757265753470,7.41,202.35,202.23,4.94234187]
[1757265753668,7.41,202.35,202.22,4.94234187]
[1757265753868,7.41,202.35,202.23,122.88]
[1757265754771,7.41,202.35,202.2,7.55]
[1757265755069,7.41,202.35,202.24,139.1]
[1757265755879,7.41,202.35,202.22,7.62]
[1757265759374,7.41,202.35,202.22,12.56234187]
[1757265759577,7.41,202.35,202.23,7.62]
[1757265759772,7.73,202.28,202.11,7.62]
[1757265759977,7.73,202.25,202.11,7.62]
[1757265760171,7.73,202.25,202.11,146.72]
[1757265761474,7.73,202.25,202.11,7.62]
[1757265761668,7.73,202.25,202.12,139.1]
[1757265762476,7.73,202.25,202.13,7.62]
[1757265762678,7.73,202.3,202.14,7.62]
[1757265762978,7.73,202.3,202.15,138.78]
[1757265763373,4.94234187,202.31,202.14,7.62]
[1757265763573,29.83,202.37,202.14,146.28]
[1757265763574,7.73,202.26,202.14,146.28]
[1757265765677,7.73,202.26,202.15,7.62]
[1757265766280,7.73,202.26,202.16,138.4]
[1757265766876,7.73,202.26,202.15,7.62]
[1757265767182,7.73,202.26,202.16,138.34]
[1757265767677,7.73,202.34,202.17,7.62]
[1757265767876,7.73,202.31,202.17,7.62]
[1757265769880,4.94234187,202.28,202.18,137.86]
[1757265770084,7.73,202.27,202.18,137.86]
[1757265772280,7.73,202.27,202.19,7.62]
[1757265772982,12.67234187,202.27,202.13,7.62]
[1757265773486,7.73,202.27,202.13,7.62]
[1757265773685,7.73,202.27,202.15,7.62]
[1757265774488,7.73,202.27,202.16,137.32]
[1757265774686,7.73,202.27,202.16,137.28]
[1757265775286,7.73,202.27,202.17,7.62]
[1757265777988,10.40461132,202.34,202.17,12.0711]
[1757265778188,7.73,202.33,202.17,12.0711]
[1757265779085,10.40461132,202.34,202.17,12.0711]
[1757265779788,7.73,202.33,202.17,12.0711]
[1757265779983,10.40461132,202.34,202.17,12.0711]
[1757265780183,7.73,202.32,202.17,12.0711]
[1757265780383,5.46226945,202.33,202.17,12.0711]
[1757265780589,4.94234187,202.31,202.19,7.62]
[1757265780892,7.73,202.3,202.19,7.62]
[1757265783194,13.19226945,202.3,202.19,7.62]
[1757265785099,5.46226945,202.29,202.19,4.4507]
[1757265785293,13.19226945,202.3,202.2,7.56]
[1757265786692,10.40461132,202.29,202.2,7.56]
[1757265786905,8.03,202.28,202.2,7.56]
[1757265787097,13.49226945,202.28,202.2,7.56]
[1757265787788,8.03,202.28,202.2,7.56]
[1757265788991,8.03,202.28,202.2,12.0105]
[1757265789186,13.49226945,202.28,202.2,12.0105]
[1757265790799,13.49226945,202.28,202.2,7.56]
[1757265790999,13.49226945,202.28,202.2,142.74]
[1757265791189,5.46226945,202.27,202.2,142.74]
[1757265791993,5.46226945,202.27,202.2,7.56]
[1757265792193,5.46226945,202.26,202.2,7.56]
[1757265792495,5.46226945,202.27,202.2,7.56]
[1757265792695,5.46226945,202.26,202.2,142.58]
[1757265793194,8.03,202.28,202.2,142.46]
[1757265793396,8.03,202.28,202.16,7.56]
[1757265793600,5.46226945,202.26,202.16,141.38]
[1757265794097,5.46226945,202.26,202.17,7.56]
[1757265795202,5.46226945,202.24,202.17,7.56]
[1757265795600,5.46226945,202.25,202.19,7.56]
[1757265795800,5.46226945,202.26,202.19,7.56]
[1757265796504,5.46226945,202.26,202.19,142.1]
[1757265797599,5.46226945,202.26,202.2,134.46]
[1757265798096,5.46226945,202.26,202.19,7.56]
[1757265798296,5.46226945,202.26,202.2,134.28]
[1757265798997,5.46226945,202.26,202.19,7.56]
[1757265799206,5.46226945,202.25,202.19,141.76]
[1757265801703,5.46226945,202.26,202.19,141.76]
[1757265801906,5.46226945,202.26,202.19,7.56]
[1757265802102,5.46226945,202.26,202.2,133.92]
[1757265803209,5.46226945,202.26,202.19,141.24]
[1757265806310,5.46226945,202.26,202.2,7.56]
[1757265807813,5.46226945,202.26,202.21,133.28]
[1757265808002,13.49226945,202.27,202.21,133.28]
[1757265808712,13.49226945,202.27,202.21,140.84]
[1757265810210,5.46226945,202.27,202.21,133.28]
[1757265810412,5.46226945,202.27,202.22,7.56]
[1757265810605,5.46226945,202.28,202.22,7.56]
[1757265811011,13.49226945,202.28,202.24,7.56]
[1757265811515,5.46226945,202.28,202.24,7.56]
[1757265811712,5.46226945,202.32,202.26,7.56]
[1757265811915,5.46226945,202.33,202.26,7.56]
[1757265812211,5.46226945,202.35,202.26,69.2112]
[1757265812412,5.46226945,202.37,202.27,140.4]
[1757265812607,5.46226945,202.39,202.28,7.56]
[1757265813009,5.46226945,202.39,202.31,4.4481]
[1757265813212,5.46226945,202.39,202.33,7.56]
[1757265813409,5.46226945,202.4,202.33,7.56]
[1757265814216,5.46226945,202.41,202.33,7.56]
[1757265815012,5.46226945,202.42,202.33,7.56]
[1757265815722,5.46226945,202.43,202.33,7.56]
[1757265816116,5.46226945,202.43,202.33,4.4476]
[1757265816317,8.03,202.44,202.34,8.15]
[1757265816620,8.03,202.44,202.36,8.15]
[1757265817019,5.46226945,202.45,202.34,25.66]
[1757265817020,5.46226945,202.42,202.34,25.66]
[1757265817217,7.88,202.41,202.34,25.66]
[1757265818220,7.88,202.41,202.34,33.81]
[1757265824020,5.46226945,202.45,202.35,8.15]
[1757265824618,5.46226945,202.45,202.35,87.23]
[1757265824924,3.07840279,202.47,202.38,8.15]
[1757265824925,5.46226945,202.47,202.38,8.15]
[1757265825324,5.46226945,202.48,202.38,8.15]
[1757265825720,7.88,202.47,202.38,8.15]
[1757265829122,7.88,202.44,202.34,8.15]
[1757265829329,7.88,202.41,202.34,8.15]
[1757265830032,7.88,202.41,202.34,11.22840279]
[1757265830427,13.34226945,202.45,202.34,11.22840279]
[1757265831028,13.34226945,202.45,202.34,3.07840279]
[1757265831231,7.88,202.45,202.35,8.15]
[1757265833338,13.34226945,202.45,202.35,8.15]
[1757265833540,7.88,202.41,202.3,8.15]
[1757265834843,7.88,202.41,202.3,12.5984]
[1757265835048,7.88,202.41,202.31,8.15]
[1757265837049,7.88,202.41,202.31,12.5981]
[1757265837244,7.88,202.41,202.32,8.15]
[1757265838049,7.88,202.41,202.32,12.5978]
[1757265838751,5.46226945,202.42,202.34,8.15]
[1757265838951,7.88,202.44,202.34,8.15]
[1757265839452,13.34226945,202.44,202.34,8.15]
[1757265839951,13.34226945,202.44,202.35,4.4472]
[1757265841252,13.34226945,202.44,202.36,8.15]
[1757265843246,7.88,202.44,202.36,8.15]
[1757265850954,13.34226945,202.44,202.36,8.15]
[1757265851452,7.95,202.42,202.36,8.15]
[1757265852649,5.46226945,202.43,202.23,69.2194]
[1757265852960,7.95,202.4,202.31,7.76]
[1757265853258,13.41226945,202.4,202.31,7.76]
[1757265854361,5.46226945,202.39,202.31,7.76]
[1757265854556,5.46226945,202.39,202.28,7.76]
[1757265854761,13.41226945,202.4,202.28,7.76]
[1757265855263,5.46226945,202.41,202.36,7.76]
[1757265855463,5.46226945,202.4,202.35,4.4473]
[1757265855663,16.15300555,202.43,202.29,69.2007]
[1757265855664,5.46226945,202.41,202.37,7.76]
[1757265855863,5.46226945,202.42,202.36,4.447]
[1757265856164,5.46226945,202.42,202.3,7.76]
[1757265856364,5.46226945,202.41,202.3,7.76]
[1757265856558,5.46226945,202.41,202.35,12.2073]
[1757265859964,5.46226945,202.41,202.36,4.447]
[1757265860159,5.46226945,202.41,202.37,7.76]
[1757265860463,5.46226945,202.41,202.36,4.447]